[Event "NOR-ch Elite 2019"]
[Site "Larvik"]
[Date "2019.07.08"]
[Round "4.11"]
[White "Vestby-Ellingsen, Mads"]
[Black "Altarbosh, Ward"]
[Result "1-0"]
[ECO "C11"]
[WhiteElo "2335"]
[BlackElo "2202"]
[Annotator "NA"]
[PlyCount "261"]
[EventDate "2019.07.05"]
[EventType "swiss"]
[EventCountry "NOR"]
[SourceTitle "playchess.com"]
[Source "ChessBase"]
[SourceQuality "1"]
[TimeControl "40/5400+30:1800+30"]

1. e4 {[%emt 0:00:00]} e6 {[%emt 0:00:44]} 2. d4 {[%emt 0:00:21]} d5 {[%emt 0:00:10]} 3. Nc3 {[%emt 0:00:13]} Nf6 {[%emt 0:00:08]} 4. e5 {[%emt 0:00:13]} Nfd7 {[%emt 0:00:04]} 5. f4 {[%emt 0:00:11]} c5 {[%emt 0:00:04]} 6. Nf3 {[%emt 0:00:07]} Nc6 {[%emt 0:00:02]} 7. Be3 {[%emt 0:00:10]} a6 {[%emt 0:00:03]} 8. Qd2 {[%emt 0:00:10]} b5 {[%emt 0:00:05]} 9. dxc5 {[%emt 0:00:10]} Bxc5 {[%emt 0:00:07]} 10. Bd3 {[%emt 0:00:19]} Qb6 {[%emt 0:00:06]} 11. Bf2 {[%emt 0:00:12]} Bb7 {[%emt 0:00:10]} 12. a3 {[%emt 0:00:30]} b4 {[%emt 0:09:03]} 13. axb4 {[%emt 0:00:56]} Bxf2+ {[%emt 0:03:08]} 14. Qxf2 {[%emt 0:00:10]} Qxb4 {[%emt 0:00:08]} 15. Qd2 {[%emt 0:02:08]} Nd4 {[%emt 0:00:42]} 16. Nxd4 {[%emt 0:06:54]} Qxd4 {[%emt 0:00:27]} 17. Qf2 {[%emt 0:03:03]} Qxf2+ {[%emt 0:00:33]} 18. Kxf2 {[%emt 0:00:09]} g5 {[%emt 0:01:36]} 19. g3 {[%emt 0:01:40]} f6 {[%emt 0:00:47]} 20. exf6 {[%emt 0:04:12]} gxf4 {[%emt 0:00:28]} 21. gxf4 {[%emt 0:05:40]} Nxf6 {[%emt 0:00:11]} 22. Rhg1 {[%emt 0:03:50]} Kf7 {[%emt 0:01:21]} 23. Ne2 {[%emt 0:04:36]} Rhg8 {[%emt 0:00:08]} 24. Rxg8 {[%emt 0:08:32]} Rxg8 {[%emt 0:00:44]} 25. h3 {[%emt 0:01:01]} h5 {[%emt 0:03:04]} 26. Ra4 {[%emt 0:08:35]} h4 {[%emt 0:04:13]} 27. Rb4 {[%emt 0:06:02]} Ba8 {[%emt 0:03:27]} 28. Rb6 {[%emt 0:05:12]} d4 {[%emt 0:00:48]} 29. Rxa6 {[%emt 0:02:54]} Rg2+ {[%emt 0:06:16]} 30. Kf1 {[%emt 0:01:02]} Bd5 {[%emt 0:01:23]} 31. Ra7+ {[%emt 0:02:37]} Kf8 {[%emt 0:02:04]} 32. Nxd4 {[%emt 0:14:37]} Rg3 {[%emt 0:00:22]} 33. Ra6 {[%emt 0:18:16]} Kf7 {[%emt 0:22:50]} 34. Ra7+ {[%emt 0:00:10]} Kg8 {[%emt 0:00:10]} 35. Ra6 {[%emt 0:01:52]} Rxh3 {[%emt 0:00:28]} 36. Nxe6 {[%emt 0:00:23]} Rh1+ {[%emt 0:03:03]} 37. Ke2 {[%emt 0:00:42]} h3 {[%emt 0:00:30]} 38. Ng5 {[%emt 0:00:32]} h2 {[%emt 0:00:18]} 39. Rxf6 {[%emt 0:00:23]} Re1+ {[%emt 0:00:16]} 40. Kxe1 {[%emt 0:00:33]} h1=Q+ {[%emt 0:00:08]} 41. Kd2 {[%emt 0:06:34]} Qh2+ {[%emt 0:00:39]} 42. Ke3 {[%emt 0:01:53]} Qg1+ {[%emt 0:04:18]} 43. Ke2 {[%emt 0:00:34]} Qh2+ {[%emt 0:09:23]} 44. Ke3 {[%emt 0:00:49]} Kg7 {[%emt 0:01:17]} 45. Rg6+ {[%emt 0:01:45]} Kf8 {[%emt 0:00:04]} 46. Kd4 {[%emt 0:02:28]} Bb7 {[%emt 0:13:46]} 47. Kc5 {[%emt 0:09:20]} Qf2+ {[%emt 0:00:11]} 48. Kb5 {[%emt 0:00:16]} Bd5 {[%emt 0:02:01]} 49. Rd6 {[%emt 0:00:50]} Bg8 {[%emt 0:01:17]} 50. Ne4 {[%emt 0:04:49]} Qh2 {[%emt 0:01:11]} 51. Rd8+ {[%emt 0:00:50]} Kg7 {[%emt 0:00:10]} 52. Rd7+ {[%emt 0:00:19]} Kf8 {[%emt 0:00:32]} 53. Rd8+ {[%emt 0:01:59]} Kg7 {[%emt 0:00:05]} 54. Rd7+ {[%emt 0:01:56]} Kg6 {[%emt 0:02:41]} 55. Nf2+ {[%emt 0:02:33]} Kh5 {[%emt 0:00:22]} 56. Rg7 {[%emt 0:01:04]} Qxf4 {[%emt 0:01:31]} 57. Rxg8 {[%emt 0:00:39]} Qe5+ {[%emt 0:00:05]} 58. Ka4 {[%emt 0:00:32]} Qd4+ {[%emt 0:00:23]} 59. b4 {[%emt 0:00:20]} Qxf2 {[%emt 0:00:38]} 60. Rg6 {[%emt 0:00:21]} Qd4 {[%emt 0:00:22]} 61. Kb3 {[%emt 0:00:45]} Qd5+ {[%emt 0:00:07]} 62. Ka3 {[%emt 0:00:11]} Qd4 {[%emt 0:00:53]} 63. b5 {[%emt 0:00:49]} Qc5+ {[%emt 0:00:05]} 64. Kb3 {[%emt 0:00:27]} Qd5+ {[%emt 0:00:06]} 65. Kb4 {[%emt 0:00:09]} Qd4+ {[%emt 0:00:05]} 66. Ka5 {[%emt 0:00:08]} Qc3+ {[%emt 0:00:20]} 67. Kb6 {[%emt 0:00:24]} Qd4+ {[%emt 0:00:04]} 68. Kc6 {[%emt 0:00:43]} Qa4 {[%emt 0:00:04]} 69. Kb7 {[%emt 0:00:43]} Qd4 {[%emt 0:00:22]} 70. b6 {[%emt 0:00:54]} Qd7+ {[%emt 0:00:14]} 71. Kb8 {[%emt 0:00:22]} Qd8+ {[%emt 0:00:11]} 72. Ka7 {[%emt 0:00:08]} Qd4 {[%emt 0:00:03]} 73. Rc6 {[%emt 0:00:50]} Kg5 {[%emt 0:00:06]} 74. Rc4 {[%emt 0:00:17]} Qa1+ {[%emt 0:00:06]} 75. Kb8 {[%emt 0:00:10]} Qe5+ {[%emt 0:00:05]} 76. Kc8 {[%emt 0:01:03]} Qe8+ {[%emt 0:01:04]} 77. Kc7 {[%emt 0:00:09]} Qe7+ {[%emt 0:00:11]} 78. Kc6 {[%emt 0:00:06]} Qe8+ {[%emt 0:00:26]} 79. Kc5 {[%emt 0:00:17]} Qe5+ {[%emt 0:00:05]} 80. Kb4 {[%emt 0:01:26]} Qb2+ {[%emt 0:00:05]} 81. Ka5 {[%emt 0:00:07]} Kf6 {[%emt 0:00:09]} 82. Rb4 {[%emt 0:01:01]} Qa1+ {[%emt 0:00:06]} 83. Ra4 {[%emt 0:00:35]} Qe5+ {[%emt 0:00:12]} 84. Ka6 {[%emt 0:00:23]} Qd6 {[%emt 0:00:40]} 85. Rc4 {[%emt 0:00:40]} Ke7 {[%emt 0:00:07]} 86. Kb5 {[%emt 0:00:33]} Qd7+ {[%emt 0:00:50]} 87. Ka5 {[%emt 0:00:27]} Qd5+ {[%emt 0:00:06]} 88. Ka4 {[%emt 0:00:24]} Kd6 {[%emt 0:00:08]} 89. Kb4 {[%emt 0:00:40]} Qe5 {[%emt 0:00:16]} 90. Kb3 {[%emt 0:00:25]} Qa1 {[%emt 0:00:14]} 91. Rb4 {[%emt 0:00:31]} Qb1+ {[%emt 0:00:19]} 92. Kc4 {[%emt 0:00:26]} Qa2+ {[%emt 0:00:07]} 93. Rb3 {[%emt 0:00:21]} Qa5 {[%emt 0:00:16]} 94. Rb5 {[%emt 0:00:29]} Qa4+ {[%emt 0:01:03]} 95. Kc3 {[%emt 0:00:10]} Qa8 {[%emt 0:00:39]} 96. b7 {[%emt 0:00:19]} Qb8 {[%emt 0:00:01]} 97. Kb2 {[%emt 0:00:35]} Kc6 {[%emt 0:00:08]} 98. Kb1 {[%emt 0:00:13]} Kc7 {[%emt 0:00:33]} 99. Be4 {[%emt 0:00:14]} Kd6 {[%emt 0:00:14]} 100. Bf3 {[%emt 0:00:25]} Kd7 {[%emt 0:00:19]} 101. Rb3 {[%emt 0:00:38]} Ke7 {[%emt 0:00:52]} 102. Rb5 {[%emt 0:01:35]} Kd7 {[%emt 0:00:15]} 103. c3 {[%emt 0:00:36]} Ke7 {[%emt 0:00:10]} 104. c4 {[%emt 0:00:19]} Kd6 {[%emt 0:00:03]} 105. c5+ {[%emt 0:00:17]} Ke5 {[%emt 0:00:03]} 106. c6+ {[%emt 0:00:15]} Kd6 {[%emt 0:00:17]} 107. Rb2 {[%emt 0:00:52]} Kc7 {[%emt 0:00:09]} 108. Rb3 {[%emt 0:00:20]} Kd6 {[%emt 0:00:11]} 109. Rd3+ {[%emt 0:00:26]} Ke6 {[%emt 0:00:32]} 110. Bg4+ {[%emt 0:00:56]} Ke5 {[%emt 0:00:13]} 111. Rb3 {[%emt 0:00:25]} Kd6 {[%emt 0:00:06]} 112. Bd7 {[%emt 0:00:21]} Kc7 {[%emt 0:00:09]} 113. Rb2 {[%emt 0:00:22]} Kd6 {[%emt 0:00:09]} 114. Kc1 {[%emt 0:00:49]} Kd5 {[%emt 0:00:28]} 115. Rd2+ {[%emt 0:00:29]} Ke4 {[%emt 0:01:23]} 116. Re2+ {[%emt 0:00:33]} Kf3 {[%emt 0:00:39]} 117. Rd2 {[%emt 0:00:38]} Qf4 {[%emt 0:00:33]} 118. Be6 {[%emt 0:00:30]} Ke3 {[%emt 0:00:34]} 119. Bb3 {[%emt 0:00:31]} Qf1+ {[%emt 0:06:53]} 120. Bd1 {[%emt 0:00:16]} Qf4 {[%emt 0:02:14]} 121. Rb2 {[%emt 0:00:21]} Qc4+ {[%emt 0:01:20]} 122. Kb1 {[%emt 0:00:10]} Qd3+ {[%emt 0:00:06]} 123. Ka2 {[%emt 0:00:59]} Qa6+ {[%emt 0:00:07]} 124. Kb3 {[%emt 0:00:22]} Qb5+ {[%emt 0:02:46]} 125. Ka3 {[%emt 0:00:07]} Qc5+ {[%emt 0:00:11]} 126. Rb4 {[%emt 0:01:02]} Qc1+ {[%emt 0:00:05]} 127. Ka2 {[%emt 0:00:31]} Qd2+ {[%emt 0:00:10]} 128. Rb2 {[%emt 0:00:27]} Qa5+ {[%emt 0:00:18]} 129. Kb1 {[%emt 0:00:08]} Qf5+ {[%emt 0:00:12]} 130. Kc1 {[%emt 0:00:31]} Qc5+ {[%emt 0:00:04]} 131. Bc2 {[%emt 0:00:13]} 1-0

[Event "NOR-ch Elite 2019"]
[Site "Larvik"]
[Date "2019.07.08"]
[Round "4.12"]
[White "Risting, Eivind Olav"]
[Black "Skrondal, Inge Sandstad"]
[Result "1/2-1/2"]
[ECO "D37"]
[WhiteElo "2314"]
[BlackElo "2312"]
[Annotator "NA"]
[PlyCount "46"]
[EventDate "2019.07.05"]
[EventType "swiss"]
[EventCountry "NOR"]
[SourceTitle "playchess.com"]
[Source "ChessBase"]
[SourceQuality "1"]
[TimeControl "40/5400+30:1800+30"]

1. d4 {[%emt 0:03:34]} d5 {[%emt 0:00:40]} 2. c4 {[%emt 0:00:20]} e6 {[%emt 0:00:04]} 3. Nc3 {[%emt 0:00:42]} Nf6 {[%emt 0:00:07]} 4. Nf3 {[%emt 0:00:57]} Be7 {[%emt 0:00:05]} 5. Bf4 {[%emt 0:00:06]} O-O {[%emt 0:00:10]} 6. e3 {[%emt 0:00:47]} b6 {[%emt 0:00:10]} 7. cxd5 {[%emt 0:00:35]} Nxd5 {[%emt 0:00:30]} 8. Nxd5 {[%emt 0:01:13]} Qxd5 {[%emt 0:00:05]} 9. Bd3 {[%emt 0:15:18]} Qa5+ {[%emt 0:01:14]} 10. Kf1 {[%emt 0:08:44]} Ba6 {[%emt 0:23:15]} 11. Bxc7 {[%emt 0:15:58]} Bxd3+ {[%emt 0:05:05]} 12. Qxd3 {[%emt 0:00:06]} Na6 {[%emt 0:00:13]} 13. Bg3 {[%emt 0:01:52]} Rfc8 {[%emt 0:05:25]} 14. a3 {[%emt 0:05:10]} Nb4 {[%emt 0:03:25]} 15. Qd1 {[%emt 0:08:05]} Qb5+ {[%emt 0:03:41]} 16. Qe2 {[%emt 0:09:34]} Qa4 {[%emt 0:14:46]} 17. h3 {[%emt 0:05:09]} Rc2 {[%emt 0:18:46]} 18. Qd1 {[%emt 0:01:32]} Nd5 {[%emt 0:00:14]} 19. Kg1 {[%emt 0:02:26]} Qc4 {[%emt 0:02:32]} 20. Ne5 {[%emt 0:07:30]} Qb3 {[%emt 0:00:31]} 21. Rb1 {[%emt 0:05:44]} a5 {[%emt 0:04:51]} 22. Kh2 {[%emt 0:00:43]} a4 {[%emt 0:00:21]} 23. Nd3 {[%emt 0:03:41]} Rac8 {[%emt 0:01:20]} 1/2-1/2

[Event "NOR-ch Elite 2019"]
[Site "Larvik"]
[Date "2019.07.08"]
[Round "4.13"]
[White "Vitenberg, Noam Aviv"]
[Black "Ingebretsen, Jens E"]
[Result "1-0"]
[ECO "A50"]
[WhiteElo "2300"]
[BlackElo "2276"]
[Annotator "NA"]
[PlyCount "61"]
[EventDate "2019.07.05"]
[EventType "swiss"]
[EventCountry "NOR"]
[SourceTitle "playchess.com"]
[Source "ChessBase"]
[SourceQuality "1"]
[TimeControl "40/5400+30:1800+30"]

1. d4 {[%emt 0:00:00]} Nf6 {[%emt 0:00:00]} 2. c4 {[%emt 0:00:00]} b6 {[%emt 0:00:00]} 3. Nc3 {[%emt 0:06:16]} Bb7 {[%emt 0:00:00]} 4. d5 {[%emt 0:02:15]} c6 {[%emt 0:05:25]} 5. e4 {[%emt 0:01:13]} cxd5 {[%emt 0:02:10]} 6. cxd5 {[%emt 0:10:08]} e5 {[%emt 0:08:05]} 7. Bd3 {[%emt 0:03:07]} Bb4 {[%emt 0:00:49]} 8. Nge2 {[%emt 0:06:09]} Na6 {[%emt 0:04:41]} 9. a3 {[%emt 0:03:18]} Bxc3+ {[%emt 0:00:16]} 10. Nxc3 {[%emt 0:00:11]} Nc5 {[%emt 0:00:06]} 11. Bc2 {[%emt 0:00:46]} d6 {[%emt 0:03:34]} 12. O-O {[%emt 0:04:57]} O-O {[%emt 0:01:12]} 13. f4 {[%emt 0:04:20]} exf4 {[%emt 0:07:46]} 14. Bxf4 {[%emt 0:00:30]} Qe7 {[%emt 0:01:17]} 15. Bg5 {[%emt 0:04:14]} Ncd7 {[%emt 0:00:27]} 16. Qf3 {[%emt 0:04:21]} h6 {[%emt 0:05:33]} 17. Bh4 {[%emt 0:01:17]} Qe5 {[%emt 0:04:33]} 18. Rae1 {[%emt 0:03:16]} Rae8 {[%emt 0:03:09]} 19. Ba4 {[%emt 0:04:42]} Rc8 {[%emt 0:02:05]} 20. Nb5 {[%emt 0:02:21]} Rc4 {[%emt 0:18:42]} 21. Bg3 {[%emt 0:06:46]} Qxb2 {[%emt 0:02:04]} 22. Rf2 {[%emt 0:05:16]} Qxf2+ {[%emt 0:04:41]} 23. Bxf2 {[%emt 0:00:34]} Rxa4 {[%emt 0:00:11]} 24. Nxd6 {[%emt 0:00:18]} Ba8 {[%emt 0:00:51]} 25. Qb3 {[%emt 0:01:00]} Ra5 {[%emt 0:00:38]} 26. Nc4 {[%emt 0:03:11]} Ra6 {[%emt 0:02:23]} 27. Qb5 {[%emt 0:01:59]} Nb8 {[%emt 0:00:06]} 28. Bd4 {[%emt 0:06:23]} Ne8 {[%emt 0:02:11]} 29. Be5 {[%emt 0:00:40]} f5 {[%emt 0:04:49]} 30. Bxb8 {[%emt 0:00:23]} Bb7 {[%emt 0:00:09]} 31. e5 {[%emt 0:01:13]} 1-0

[Event "NOR-ch Elite 2019"]
[Site "Larvik"]
[Date "2019.07.09"]
[Round "5.1"]
[White "Urkedal, Frode Olav Olsen"]
[Black "Tari, Aryan"]
[Result "0-1"]
[ECO "D85"]
[WhiteElo "2566"]
[BlackElo "2620"]
[Annotator "RC"]
[PlyCount "138"]
[EventDate "2019.07.05"]
[EventType "swiss"]
[EventCountry "NOR"]
[SourceTitle "playchess.com"]
[Source "ChessBase"]
[SourceQuality "1"]
[TimeControl "40/5400+30:1800+30"]

1. c4 {[%emt 0:01:01]} g6 {[%emt 0:00:00]} 2. Nf3 {[%emt 0:04:16]} Bg7 {[%emt 0:00:27]} 3. d4 {[%emt 0:04:15]} Nf6 {[%emt 0:00:17]} 4. Nc3 {[%emt 0:00:10]} d5 {[%emt 0:00:06]} 5. cxd5 {[%emt 0:00:04]} Nxd5 {[%emt 0:00:03]} 6. e4 {[%emt 0:00:05]} Nxc3 {[%emt 0:00:07]} 7. bxc3 {[%emt 0:00:05]} c5 {[%emt 0:00:18]} 8. Be3 {[%emt 0:00:43]} Qa5 {[%emt 0:00:23]} 9. Qd2 {[%emt 0:00:07]} O-O {[%emt 0:00:38]} 10. Rc1 {[%emt 0:01:16]} Rd8 {[%emt 0:00:22]} 11. d5 {[%emt 0:00:19]} e6 {[%emt 0:00:21]} 12. Bg5 {[%emt 0:00:38]} f6 {[%emt 0:01:54]} 13. Be3 {[%emt 0:00:24]} Nc6 {[%emt 0:01:02]} 14. Bd3 {[%emt 0:00:40]} Ne7 {[%emt 0:01:21]} 15. c4 {[%emt 0:10:13]} Qxd2+ {[%emt 0:00:14]} 16. Nxd2 {[%emt 0:01:59]} b6 {[%emt 0:00:39]} 17. Be2 {[%emt 0:09:18]} Re8 {[%emt 0:04:53]} 18. O-O {[%emt 0:10:27]} Bd7 {[%emt 0:07:51]} 19. Rfe1 {[%emt 0:03:51]} f5 {[%emt 0:10:18]} 20. f3 {[%emt 0:10:34]} h6 {[%emt 0:03:59]} 21. h4 {[%emt 0:10:54]} Kh7 {[%emt 0:01:47]} 22. Bf2 {[%emt 0:01:01]} Be5 {[%emt 0:05:15]} 23. g3 {[%emt 0:07:29]} f4 {[%emt 0:05:15]} 24. Kg2 {[%emt 0:00:42]} Nc8 {[%emt 0:05:17]} 25. Bd3 {[%emt 0:04:27]} Nd6 {[%emt 0:03:22]} 26. Re2 {[%emt 0:02:50]} g5 {[%emt 0:05:05]} 27. hxg5 {[%emt 0:02:27]} hxg5 {[%emt 0:00:16]} 28. Nf1 {[%emt 0:01:46]} Kg7 {[%emt 0:03:15]} 29. Nh2 {[%emt 0:06:39]} exd5 {[%emt 0:05:32]} 30. exd5 {[%emt 0:03:31]} fxg3 {[%emt 0:00:41]} 31. Bxg3 {[%emt 0:00:19]} Bxg3 {[%emt 0:00:44]} 32. Kxg3 {[%emt 0:00:10]} Rxe2 {[%emt 0:02:11]} 33. Bxe2 {[%emt 0:00:05]} Rh8 {[%emt 0:01:45]} 34. Bd3 {[%emt 0:00:49]} Rh3+ {[%emt 0:02:01]} 35. Kg2 {[%emt 0:00:05]} Rh4 {[%emt 0:02:29]} 36. Rc3 {[%emt 0:01:26]} Kf6 {[%emt 0:02:08]} 37. Be2 {[%emt 0:02:11]} Bh3+ {[%emt 0:10:16]} 38. Kg3 {[%emt 0:00:53]} Bc8 {[%emt 0:00:14]} 39. Ra3 {[%emt 0:00:38]} Rh3+ {[%emt 0:06:20]} 40. Kg2 {[%emt 0:00:08]} Rh7 {[%emt 0:00:12]} 41. Ng4+ {[%emt 0:06:05]} Bxg4 {[%emt 0:04:06]} 42. fxg4 {[%emt 0:00:23]} Ke5 {[%emt 0:00:40]} 43. Re3+ {[%emt 0:09:36]} Kd4 {[%emt 0:00:14]} 44. Rd3+ {[%emt 0:01:12]} Ke4 {[%emt 0:00:09]} 45. Rd1 {[%emt 0:01:12]} Ke3 {[%emt 0:03:22]} 46. Bf1 {[%emt 0:09:25]} Rf7 {[%emt 0:02:26]} 47. Rd3+ {[%emt 0:01:40]} Ke4 {[%emt 0:00:34]} 48. Rd2 {[%emt 0:03:26]} Kf4 {[%emt 0:02:26]} 49. Re2 {[%emt 0:00:36]} Rf6 {[%emt 0:17:19]} 50. Re7 {[%emt 0:00:24]} Kxg4 {[%emt 0:00:37]} 51. Rxa7 {[%emt 0:00:37]} Nf5 {[%emt 0:00:07]} 52. Be2+ {[%emt 0:00:59]} Kf4 {[%emt 0:00:03]} 53. Bd3 {[%emt 0:00:56]} Nh4+ {[%emt 0:01:49]} 54. Kf2 {[%emt 0:00:05]} g4 {[%emt 0:00:27]} 55. Rg7 {[%emt 0:00:17]} Nf3 {[%emt 0:00:17]} 56. Be2 {[%emt 0:01:07]} Ne5 {[%emt 0:01:23]} 57. Rg8 {[%emt 0:00:04]} Ng6 {[%emt 0:03:04]} 58. Kg2 {[%emt 0:01:07]} g3 {[%emt 0:01:23]} 59. Bh5 {[%emt 0:00:13]} Nh4+ {[%emt 0:01:12]} 60. Kh3 {[%emt 0:00:04]} Nf5 {[%emt 0:00:22]} 61. Rg4+ {[%emt 0:00:31]} Ke3 {[%emt 0:02:14]} 62. Kg2 {[%emt 0:01:19]} Rh6 {[%emt 0:02:07]} 63. Rg5 {[%emt 0:00:26]} Kf4 {[%emt 0:00:10]} 64. Rg4+ {[%emt 0:00:29]} Ke5 {[%emt 0:00:01]} 65. Be8 {[%emt 0:00:19]} Rh2+ {[%emt 0:01:38]} 66. Kg1 {[%emt 0:00:06]} Rxa2 {[%emt 0:00:03]} 67. Bd7 {[%emt 0:01:24]} Ra1+ {[%emt 0:00:34]} 68. Kg2 {[%emt 0:00:05]} Ne3+ {[%emt 0:00:07]} 69. Kxg3 {[%emt 0:00:04]} Rg1+ {[%emt 0:00:35]} 0-1

[Event "NOR-ch Elite 2019"]
[Site "Larvik"]
[Date "2019.07.09"]
[Round "5.2"]
[White "Holm, Kristian Stuvik"]
[Black "Notkevich, Benjamin Arvola"]
[Result "1/2-1/2"]
[ECO "E15"]
[WhiteElo "2469"]
[BlackElo "2497"]
[Annotator "ChessBase"]
[PlyCount "100"]
[EventDate "2019.07.05"]
[EventType "swiss"]
[EventCountry "NOR"]
[SourceTitle "playchess.com"]
[Source "ChessBase"]
[SourceQuality "1"]
[TimeControl "40/5400+30:1800+30"]

1. d4 {[%emt 0:01:53]} Nf6 {[%emt 0:00:00]} 2. c4 {[%emt 0:00:05]} e6 {[%emt 0:00:00]} 3. Nf3 {[%emt 0:00:04]} b6 {[%emt 0:00:00]} 4. g3 {[%emt 0:00:09]} Ba6 {[%emt 0:00:00]} 5. Nbd2 {[%emt 0:01:25]} d5 {[%emt 0:00:17]} 6. Bg2 {[%emt 0:05:11]} Be7 {[%emt 0:00:21]} 7. O-O {[%emt 0:00:53]} O-O {[%emt 0:00:05]} 8. b3 {[%emt 0:01:31]} c5 {[%emt 0:01:33]} 9. Bb2 {[%emt 0:00:55]} Nc6 {[%emt 0:01:33]} 10. Rc1 {[%emt 0:05:03]} Rc8 {[%emt 0:00:43]} 11. dxc5 {[%emt 0:13:42]} bxc5 {[%emt 0:01:11]} 12. cxd5 {[%emt 0:00:15]} exd5 {[%emt 0:00:06]} 13. Ne5 {[%emt 0:00:14]} Nxe5 {[%emt 0:12:12]} 14. Bxe5 {[%emt 0:00:16]} Re8 {[%emt 0:01:36]} 15. Re1 {[%emt 0:01:09]} Bb7 {[%emt 0:35:04]} 16. e3 {[%emt 0:06:01]} Qb6 {[%emt 0:01:42]} 17. Qc2 {[%emt 0:05:58]} Bf8 {[%emt 0:04:13]} 18. Bb2 {[%emt 0:02:35]} h6 {[%emt 0:00:59]} 19. Qb1 {[%emt 0:12:34]} Rcd8 {[%emt 0:10:13]} 20. Qa1 {[%emt 0:09:34]} d4 {[%emt 0:13:22]} 21. Nc4 {[%emt 0:00:51]} Qb5 {[%emt 0:00:21]} 22. f3 {[%emt 0:07:07]} Nd5 {[%emt 0:02:01]} 23. Bf1 {[%emt 0:02:26]} Qd7 {[%emt 0:05:18]} 24. e4 {[%emt 0:02:04]} Nb4 {[%emt 0:00:44]} 25. a3 {[%emt 0:02:07]} Nc6 {[%emt 0:00:17]} 26. f4 {[%emt 0:01:53]} d3 {[%emt 0:01:48]} 27. Rcd1 {[%emt 0:00:57]} Nd4 {[%emt 0:02:12]} 28. Bxd4 {[%emt 0:00:09]} Qxd4+ {[%emt 0:00:47]} 29. Qxd4 {[%emt 0:00:05]} Rxd4 {[%emt 0:00:06]} 30. Bxd3 {[%emt 0:03:30]} Red8 {[%emt 0:00:04]} 31. Bc2 {[%emt 0:01:30]} Rxd1 {[%emt 0:00:13]} 32. Rxd1 {[%emt 0:01:22]} Rxd1+ {[%emt 0:00:11]} 33. Bxd1 {[%emt 0:00:03]} Bxe4 {[%emt 0:00:09]} 34. Kf2 {[%emt 0:00:16]} g6 {[%emt 0:03:18]} 35. Ke3 {[%emt 0:00:11]} Bd5 {[%emt 0:00:13]} 36. Bf3 {[%emt 0:01:39]} Be6 {[%emt 0:00:07]} 37. Be4 {[%emt 0:01:32]} Bg7 {[%emt 0:00:10]} 38. Bc2 {[%emt 0:03:12]} Bd4+ {[%emt 0:00:11]} 39. Kf3 {[%emt 0:00:10]} h5 {[%emt 0:00:50]} 40. f5 {[%emt 0:03:24]} gxf5 {[%emt 0:04:24]} 41. Ne3 {[%emt 0:31:39]} Bb2 {[%emt 0:21:34]} 42. a4 {[%emt 0:00:00]} Kg7 {[%emt 0:00:10]} 43. Nxf5+ {[%emt 0:00:00]} Kf6 {[%emt 0:00:04]} 44. Ne3 {[%emt 0:00:00]} Bd4 {[%emt 0:07:25]} 45. Ke4 {[%emt 0:00:00]} a5 {[%emt 0:00:11]} 46. Kf4 {[%emt 0:00:00]} Be5+ {[%emt 0:00:47]} 47. Kf3 {[%emt 0:00:00]} Kg5 {[%emt 0:01:36]} 48. h4+ {[%emt 0:00:00]} Kf6 {[%emt 0:00:42]} 49. g4 {[%emt 0:00:00]} hxg4+ {[%emt 0:02:30]} 50. Nxg4+ {[%emt 0:00:00]} Bxg4+ {[%emt 0:00:04]} 1/2-1/2

[Event "NOR-ch Elite 2019"]
[Site "Larvik"]
[Date "2019.07.09"]
[Round "5.3"]
[White "Lie, Kjetil A."]
[Black "Stokke, Kjetil"]
[Result "1-0"]
[ECO "A48"]
[WhiteElo "2538"]
[BlackElo "2336"]
[Annotator "ChessBase"]
[PlyCount "109"]
[EventDate "2019.07.05"]
[EventType "swiss"]
[EventCountry "NOR"]
[SourceTitle "playchess.com"]
[Source "ChessBase"]
[SourceQuality "1"]
[TimeControl "40/5400+30:1800+30"]

1. d4 {[%emt 0:02:21]} Nf6 {[%emt 0:02:49]} 2. Nf3 {[%emt 0:00:00]} g6 {[%emt 0:00:12]} 3. Bg5 {[%emt 0:00:00]} Bg7 {[%emt 0:00:11]} 4. c3 {[%emt 0:00:00]} O-O {[%emt 0:00:09]} 5. Nbd2 {[%emt 0:00:00]} d6 {[%emt 0:00:13]} 6. e4 {[%emt 0:00:00]} c5 {[%emt 0:00:05]} 7. dxc5 {[%emt 0:00:18]} dxc5 {[%emt 0:00:06]} 8. Bc4 {[%emt 0:00:37]} Nc6 {[%emt 0:00:30]} 9. Qe2 {[%emt 0:01:03]} Qc7 {[%emt 0:05:36]} 10. O-O {[%emt 0:01:17]} h6 {[%emt 0:00:08]} 11. Bxf6 {[%emt 0:01:29]} exf6 {[%emt 0:06:01]} 12. Nh4 {[%emt 0:02:04]} Ne7 {[%emt 0:02:51]} 13. f4 {[%emt 0:06:25]} f5 {[%emt 0:00:50]} 14. exf5 {[%emt 0:04:53]} b5 {[%emt 0:04:49]} 15. Bd3 {[%emt 0:23:26]} Nxf5 {[%emt 0:08:14]} 16. Nxf5 {[%emt 0:02:40]} c4 {[%emt 0:01:07]} 17. Ne7+ {[%emt 0:09:11]} Kh8 {[%emt 0:01:24]} 18. Bc2 {[%emt 0:01:58]} Bb7 {[%emt 0:12:42]} 19. Rae1 {[%emt 0:03:34]} Bf6 {[%emt 0:03:51]} 20. Nxg6+ {[%emt 0:12:29]} fxg6 {[%emt 0:01:03]} 21. Bxg6 {[%emt 0:00:11]} Bxc3 {[%emt 0:00:59]} 22. bxc3 {[%emt 0:03:00]} Qb6+ {[%emt 0:00:07]} 23. Rf2 {[%emt 0:01:06]} Qxg6 {[%emt 0:00:05]} 24. Qe5+ {[%emt 0:00:18]} Qg7 {[%emt 0:00:13]} 25. Qxb5 {[%emt 0:07:04]} Rxf4 {[%emt 0:00:39]} 26. Qe5 {[%emt 0:00:54]} Rxf2 {[%emt 0:03:00]} 27. Qxg7+ {[%emt 0:00:06]} Kxg7 {[%emt 0:00:06]} 28. Kxf2 {[%emt 0:00:04]} Rd8 {[%emt 0:02:32]} 29. Nxc4 {[%emt 0:07:23]} Ba6 {[%emt 0:00:53]} 30. Re7+ {[%emt 0:02:18]} Kf6 {[%emt 0:00:35]} 31. Rc7 {[%emt 0:00:05]} Bxc4 {[%emt 0:00:15]} 32. Rxc4 {[%emt 0:00:08]} Rd2+ {[%emt 0:00:03]} 33. Kf3 {[%emt 0:00:11]} Rxa2 {[%emt 0:00:05]} 34. h4 {[%emt 0:00:36]} Kg6 {[%emt 0:08:15]} 35. Rc6+ {[%emt 0:01:09]} Kg7 {[%emt 0:01:40]} 36. Rc7+ {[%emt 0:00:14]} Kg6 {[%emt 0:00:07]} 37. Rc6+ {[%emt 0:00:04]} Kg7 {[%emt 0:00:06]} 38. g3 {[%emt 0:05:27]} a5 {[%emt 0:04:25]} 39. Kg4 {[%emt 0:01:03]} Re2 {[%emt 0:00:18]} 40. Rc7+ {[%emt 0:01:16]} Kg6 {[%emt 0:02:40]} 41. h5+ {[%emt 0:18:08]} Kf6 {[%emt 0:00:35]} 42. Rh7 {[%emt 0:00:29]} Re4+ {[%emt 0:00:08]} 43. Kh3 {[%emt 0:00:11]} a4 {[%emt 0:18:10]} 44. g4 {[%emt 0:00:54]} Kg5 {[%emt 0:00:15]} 45. Rg7+ {[%emt 0:00:05]} Kf4 {[%emt 0:00:06]} 46. Rf7+ {[%emt 0:03:30]} Ke3 {[%emt 0:00:15]} 47. Kg3 {[%emt 0:05:19]} a3 {[%emt 0:08:49]} 48. Ra7 {[%emt 0:00:41]} Rf4 {[%emt 0:00:09]} 49. Rxa3 {[%emt 0:01:05]} Rf3+ {[%emt 0:00:12]} 50. Kh4 {[%emt 0:00:23]} Rf1 {[%emt 0:00:56]} 51. Ra6 {[%emt 0:00:23]} Rh1+ {[%emt 0:00:10]} 52. Kg3 {[%emt 0:00:04]} Rg1+ {[%emt 0:00:07]} 53. Kh3 {[%emt 0:00:07]} Kf4 {[%emt 0:00:29]} 54. Rf6+ {[%emt 0:00:09]} Kg5 {[%emt 0:00:03]} 55. Rf5# {[%emt 0:00:06]} 1-0